[Event "FIDE WCCC Open-12 2024"]
[Site "Montesilvano"]
[Date "2024.11.18"]
[Round "1.1"]
[White "Golis, Wiktor"]
[Black "Ivarlac, Vladislav"]
[Result "1-0"]
[ECO "C07"]
[WhiteElo "2343"]
[BlackElo "1867"]
[PlyCount "43"]
[EventDate "2024.11.18"]
[EventType "swiss"]
[EventCountry "ITA"]
[TimeControl "5400+30"]

1. e4 {[%emt 0:00:02]} e6 {[%emt 0:00:11]} 2. d4 {[%emt 0:01:05]} d5 {[%emt 0:00:06]} 3. Nd2 {[%emt 0:00:53]} c5 {[%emt 0:00:06]} 4. Ngf3 {[%emt 0:01:10]} Nf6 {[%emt 0:01:20]} 5. exd5 {[%emt 0:02:05]} Nxd5 {[%emt 0:02:36]} 6. dxc5 {[%emt 0:09:03]} Bxc5 {[%emt 0:01:09]} 7. Ne4 {[%emt 0:00:34]} Be7 {[%emt 0:01:47]} 8. c4 {[%emt 0:16:27]} Nb4 {[%emt 0:04:07]} 9. Bf4 {[%emt 0:09:14]} Qxd1+ {[%emt 0:03:57]} 10. Rxd1 {[%emt 0:14:14]} Nxa2 {[%emt 0:02:38]} 11. Nd6+ {[%emt 0:01:06]} Bxd6 {[%emt 0:00:08]} 12. Bxd6 {[%emt 0:00:07]} Nc6 {[%emt 0:00:47]} 13. Nd4 {[%emt 0:05:52]} Nab4 {[%emt 0:00:20]} 14. Nb5 {[%emt 0:00:13]} Na6 {[%emt 0:00:10]} 15. Ba3 {[%emt 0:01:10]} Ne7 {[%emt 0:01:33]} 16. Nd6+ {[%emt 0:00:16]} Kf8 {[%emt 0:00:05]} 17. Nxc8 {[%emt 0:03:19]} Rxc8 {[%emt 0:00:14]} 18. Rd7 {[%emt 0:00:04]} Re8 {[%emt 0:00:30]} 19. Rxb7 {[%emt 0:00:19]} f6 {[%emt 0:00:24]} 20. c5 {[%emt 0:01:57]} Nb8 {[%emt 0:00:29]} 21. Bb5 {[%emt 0:03:39]} Nec6 {[%emt 0:02:34]} 22. Rc7 {[%emt 0:00:15]} 1-0

[Event "FIDE WCCC Open-12 2024"]
[Site "Montesilvano"]
[Date "2024.11.18"]
[Round "1.2"]
[White "Aadik Theophane Lenin"]
[Black "Smirnov, Mark"]
[Result "1/2-1/2"]
[ECO "D24"]
[WhiteElo "1857"]
[BlackElo "2300"]
[PlyCount "83"]
[EventDate "2024.11.18"]
[EventType "swiss"]
[EventCountry "ITA"]
[TimeControl "5400+30"]

1. d4 {[%emt 0:00:21]} Nf6 {[%emt 0:00:07]} 2. c4 {[%emt 0:00:14]} e6 {[%emt 0:00:08]} 3. Nf3 {[%emt 0:00:10]} d5 {[%emt 0:00:05]} 4. Nc3 {[%emt 0:00:08]} dxc4 {[%emt 0:00:39]} 5. e4 {[%emt 0:03:51]} b5 {[%emt 0:00:40]} 6. e5 {[%emt 0:02:07]} Nd5 {[%emt 0:00:08]} 7. Nxb5 {[%emt 0:00:16]} Nb6 {[%emt 0:00:29]} 8. Be2 {[%emt 0:01:47]} Nc6 {[%emt 0:00:52]} 9. O-O {[%emt 0:00:51]} Be7 {[%emt 0:00:33]} 10. Qd2 {[%emt 0:02:12]} Ba6 {[%emt 0:40:28]} 11. Nc3 {[%emt 0:01:36]} O-O {[%emt 0:10:54]} 12. Qf4 {[%emt 0:06:37]} f5 {[%emt 0:03:18]} 13. exf6 {[%emt 0:02:12]} Bxf6 {[%emt 0:01:04]} 14. Rd1 {[%emt 0:01:24]} Qe7 {[%emt 0:07:07]} 15. Qg4 {[%emt 0:16:25]} Rad8 {[%emt 0:02:02]} 16. Ne4 {[%emt 0:02:10]} Kh8 {[%emt 0:04:57]} 17. Neg5 {[%emt 0:07:20]} e5 {[%emt 0:05:00]} 18. Qe4 {[%emt 0:02:47]} g6 {[%emt 0:00:30]} 19. Qxc6 {[%emt 0:00:59]} exd4 {[%emt 0:00:50]} 20. Qe6 {[%emt 0:05:24]} Qg7 {[%emt 0:02:24]} 21. Bf1 {[%emt 0:16:36]} d3 {[%emt 0:03:37]} 22. Rb1 {[%emt 0:08:29]} Bc8 {[%emt 0:03:28]} 23. Qc6 {[%emt 0:04:30]} Rd6 {[%emt 0:03:47]} 24. Qc5 {[%emt 0:01:32]} Rd5 {[%emt 0:02:00]} 25. Qa3 {[%emt 0:00:08]} Bf5 {[%emt 0:03:24]} 26. Be3 {[%emt 0:03:43]} h6 {[%emt 0:00:25]} 27. Nh3 {[%emt 0:00:09]} Bxh3 28. gxh3 {[%emt 0:00:01]} Be7 {[%emt 0:02:00]} 29. Qxa7 {[%emt 0:00:28]} Rxf3 {[%emt 0:00:52]} 30. Bg2 {[%emt 0:00:09]} Rxe3 {[%emt 0:02:20]} 31. fxe3 {[%emt 0:01:15]} Rc5 {[%emt 0:01:12]} 32. b4 {[%emt 0:00:06]} Rb5 {[%emt 0:00:37]} 33. Qxc7 {[%emt 0:03:30]} Qe5 {[%emt 0:00:21]} 34. Qc6 {[%emt 0:03:08]} Bd6 {[%emt 0:00:05]} 35. Kf1 {[%emt 0:00:08]} Qf6+ {[%emt 0:00:51]} 36. Kg1 {[%emt 0:00:13]} Qe5 {[%emt 0:00:10]} 37. Kf1 {[%emt 0:00:39]} Nd5 {[%emt 0:01:04]} 38. Bxd5 {[%emt 0:02:00]} Rxd5 {[%emt 0:00:08]} 39. Qxc4 {[%emt 0:01:28]} Qxe3 {[%emt 0:00:53]} 40. Qxd5 {[%emt 0:00:20]} Qe2+ {[%emt 0:00:15]} 41. Kg1 {[%emt 0:00:01]} Qxh2+ {[%emt 0:00:42]} 42. Kf1 {[%emt 0:04:06]} 1/2-1/2

[Event "FIDE WCCC Open-12 2024"]
[Site "Montesilvano"]
[Date "2024.11.18"]
[Round "1.3"]
[White "Ritzerveld, Noah"]
[Black "Xia, Jinnan"]
[Result "1/2-1/2"]
[ECO "B90"]
[WhiteElo "2285"]
[BlackElo "1850"]
[PlyCount "139"]
[EventDate "2024.11.18"]
[EventType "swiss"]
[EventCountry "ITA"]
[TimeControl "5400+30"]

1. e4 {[%emt 0:00:03]} c5 {[%emt 0:00:10]} 2. Nf3 {[%emt 0:00:09]} d6 {[%emt 0:00:06]} 3. d4 {[%emt 0:00:06]} cxd4 {[%emt 0:00:06]} 4. Nxd4 {[%emt 0:00:13]} Nf6 {[%emt 0:00:08]} 5. Nc3 {[%emt 0:00:10]} a6 {[%emt 0:00:05]} 6. f3 {[%emt 0:00:15]} e5 {[%emt 0:00:14]} 7. Nb3 {[%emt 0:00:07]} Be6 {[%emt 0:00:29]} 8. Be3 {[%emt 0:00:10]} h5 {[%emt 0:00:13]} 9. Nd5 {[%emt 0:00:22]} Bxd5 {[%emt 0:01:49]} 10. exd5 {[%emt 0:00:08]} Nbd7 {[%emt 0:00:04]} 11. Qd2 {[%emt 0:00:16]} g6 {[%emt 0:01:41]} 12. O-O-O {[%emt 0:00:20]} b5 {[%emt 0:01:32]} 13. Bg5 {[%emt 0:09:38]} Rc8 {[%emt 0:00:34]} 14. Kb1 {[%emt 0:05:24]} Qc7 {[%emt 0:00:50]} 15. Na5 {[%emt 0:10:19]} Nxd5 {[%emt 0:05:51]} 16. Qxd5 {[%emt 0:01:46]} Qxa5 {[%emt 0:00:16]} 17. Bd3 {[%emt 0:09:44]} Rg8 {[%emt 0:08:53]} 18. c4 {[%emt 0:04:44]} Nb6 {[%emt 0:11:10]} 19. Qb7 {[%emt 0:04:01]} bxc4 {[%emt 0:00:20]} 20. Be3 {[%emt 0:02:50]} Qd5 {[%emt 0:00:47]} 21. Qxb6 {[%emt 0:11:14]} cxd3 {[%emt 0:00:09]} 22. Qxa6 {[%emt 0:06:51]} Ra8 {[%emt 0:02:28]} 23. Rxd3 {[%emt 0:00:18]} Rxa6 {[%emt 0:00:08]} 24. Rxd5 {[%emt 0:00:09]} Be7 {[%emt 0:01:44]} 25. b4 {[%emt 0:02:14]} Kd7 {[%emt 0:00:08]} 26. Kb2 {[%emt 0:00:35]} Ke6 {[%emt 0:00:08]} 27. Rhd1 {[%emt 0:00:46]} Rga8 {[%emt 0:00:07]} 28. Ra5 {[%emt 0:06:55]} Rxa5 {[%emt 0:00:10]} 29. bxa5 {[%emt 0:00:04]} Rxa5 {[%emt 0:00:08]} 30. Kb3 {[%emt 0:01:50]} d5 {[%emt 0:00:16]} 31. a4 {[%emt 0:00:29]} f5 {[%emt 0:00:57]} 32. Bb6 {[%emt 0:00:42]} Ra8 {[%emt 0:01:50]} 33. a5 {[%emt 0:00:45]} d4 {[%emt 0:02:46]} 34. f4 {[%emt 0:04:20]} Bd8 {[%emt 0:10:19]} 35. Kc4 {[%emt 0:03:59]} exf4 {[%emt 0:02:52]} 36. Rxd4 {[%emt 0:02:52]} Bxb6 {[%emt 0:02:33]} 37. axb6 {[%emt 0:00:09]} g5 {[%emt 0:00:45]} 38. Kc5 {[%emt 0:05:41]} Rc8+ {[%emt 0:03:35]} 39. Kb5 {[%emt 0:00:09]} Ke5 {[%emt 0:00:03]} 40. b7 {[%emt 0:04:15]} Rb8 {[%emt 0:00:25]} 41. Rd7 {[%emt 0:00:19]} g4 {[%emt 0:00:15]} 42. Kc4 {[%emt 0:00:41]} f3 {[%emt 0:05:50]} 43. gxf3 {[%emt 0:00:06]} gxf3 {[%emt 0:00:06]} 44. Kd3 {[%emt 0:00:24]} Kf4 {[%emt 0:00:45]} 45. Kd2 {[%emt 0:01:28]} Re8 {[%emt 0:05:07]} 46. Re7 {[%emt 0:00:29]} Rg8 {[%emt 0:01:04]} 47. Rg7 {[%emt 0:00:58]} Rd8+ {[%emt 0:00:47]} 48. Ke1 {[%emt 0:00:12]} f2+ {[%emt 0:02:52]} 49. Ke2 {[%emt 0:01:57]} f1=Q+ {[%emt 0:01:05]} 50. Kxf1 {[%emt 0:00:07]} Rd1+ {[%emt 0:00:04]} 51. Kg2 {[%emt 0:00:36]} Rb1 {[%emt 0:00:09]} 52. Rc7 {[%emt 0:00:27]} Rb2+ {[%emt 0:00:27]} 53. Kg1 {[%emt 0:00:25]} Kg4 {[%emt 0:03:02]} 54. Rg7+ {[%emt 0:02:45]} Kf3 {[%emt 0:00:05]} 55. Rg3+ {[%emt 0:00:06]} Kf4 {[%emt 0:02:32]} 56. Rg7 {[%emt 0:00:04]} h4 {[%emt 0:00:24]} 57. Rc7 {[%emt 0:00:12]} Kg4 {[%emt 0:02:35]} 58. Rc4+ {[%emt 0:01:19]} f4 {[%emt 0:06:17]} 59. Rc7 {[%emt 0:00:06]} Kf3 {[%emt 0:02:52]} 60. Rc3+ {[%emt 0:00:06]} Kg4 {[%emt 0:03:42]} 61. h3+ {[%emt 0:00:35]} Kf5 {[%emt 0:01:58]} 62. Rc5+ {[%emt 0:01:08]} Ke4 {[%emt 0:00:12]} 63. Rc4+ {[%emt 0:00:21]} Ke3 {[%emt 0:00:15]} 64. Rc3+ {[%emt 0:00:18]} Kd4 {[%emt 0:00:04]} 65. Rc7 {[%emt 0:00:12]} f3 {[%emt 0:01:07]} 66. Rc2 {[%emt 0:00:37]} Rxb7 {[%emt 0:00:55]} 67. Kf2 {[%emt 0:00:05]} Rf7 {[%emt 0:02:19]} 68. Ra2 {[%emt 0:00:06]} Rf4 {[%emt 0:00:18]} 69. Ra3 {[%emt 0:00:22]} Ke4 {[%emt 0:00:06]} 70. Re3+ {[%emt 0:03:57] Ke5} 1/2-1/2

[Event "FIDE WCCC Open-12 2024"]
[Site "Montesilvano"]
[Date "2024.11.18"]
[Round "1.4"]
[White "Anagnostopoulos, Panagiotis"]
[Black "Lacan Rus, David"]
[Result "0-1"]
[ECO "A15"]
[WhiteElo "1848"]
[BlackElo "2274"]
[PlyCount "82"]
[EventDate "2024.11.18"]
[EventType "swiss"]
[EventCountry "ITA"]
[TimeControl "5400+30"]

1. Nf3 {[%emt 0:00:05]} Nf6 {[%emt 0:00:07]} 2. c4 {[%emt 0:00:07]} g6 {[%emt 0:00:37]} 3. b3 {[%emt 0:00:04]} Bg7 {[%emt 0:00:31]} 4. Bb2 {[%emt 0:00:10]} d6 {[%emt 0:01:20]} 5. g3 {[%emt 0:00:13]} e5 {[%emt 0:00:29]} 6. d3 {[%emt 0:00:24]} O-O {[%emt 0:00:57]} 7. Bg2 {[%emt 0:01:16]} Nc6 {[%emt 0:00:25]} 8. O-O {[%emt 0:00:15]} Re8 {[%emt 0:01:13]} 9. Nc3 {[%emt 0:01:21]} h6 {[%emt 0:00:01]} 10. Nd2 {[%emt 0:01:30]} Nd4 {[%emt 0:04:50]} 11. b4 {[%emt 0:05:41]} c6 {[%emt 0:01:58]} 12. Rc1 {[%emt 0:02:06]} h5 {[%emt 0:11:54]} 13. e3 {[%emt 0:04:49]} Nf5 {[%emt 0:03:56]} 14. Nde4 {[%emt 0:02:30]} Be6 {[%emt 0:07:00]} 15. Ng5 {[%emt 0:04:01]} Bd7 {[%emt 0:01:59]} 16. h4 {[%emt 0:02:07]} Ng4 {[%emt 0:05:13]} 17. Qf3 {[%emt 0:03:10]} Bh6 {[%emt 0:09:46]} 18. Nce4 {[%emt 0:06:04]} a5 {[%emt 0:03:15]} 19. Rce1 {[%emt 0:07:16]} f6 {[%emt 0:02:04]} 20. Nh3 {[%emt 0:00:46]} axb4 {[%emt 0:00:44]} 21. Ra1 {[%emt 0:02:10]} Be6 {[%emt 0:09:17]} 22. Qe2 {[%emt 0:03:29]} d5 {[%emt 0:06:26]} 23. cxd5 {[%emt 0:02:05]} cxd5 {[%emt 0:01:19]} 24. Nd2 {[%emt 0:00:45]} Qb6 {[%emt 0:01:16]} 25. d4 {[%emt 0:03:01]} exd4 {[%emt 0:03:52]} 26. exd4 {[%emt 0:01:27]} Qd6 {[%emt 0:03:45]} 27. Qd3 {[%emt 0:01:36]} Nxh4 {[%emt 0:01:49]} 28. Rfe1 {[%emt 0:03:14]} Bf5 {[%emt 0:00:51]} 29. Rxe8+ {[%emt 0:01:21]} Rxe8 {[%emt 0:00:06]} 30. Qb5 {[%emt 0:00:06]} Rd8 {[%emt 0:07:15]} 31. Nf1 {[%emt 0:01:52]} Nxg2 {[%emt 0:00:20]} 32. Kxg2 {[%emt 0:00:06]} Qe6 {[%emt 0:03:00]} 33. Bc1 {[%emt 0:02:27]} Be4+ {[%emt 0:00:58]} 34. Kg1 {[%emt 0:00:26]} Ne5 {[%emt 0:00:49]} 35. dxe5 {[%emt 0:02:04]} Qxh3 {[%emt 0:00:09]} 36. f3 {[%emt 0:00:08]} Bxf3 {[%emt 0:00:09]} 37. Kf2 {[%emt 0:00:05]} Qg2+ {[%emt 0:00:32]} 38. Ke1 {[%emt 0:00:04]} Bf8 {[%emt 0:04:41]} 39. Qd3 {[%emt 0:01:42]} fxe5 {[%emt 0:01:02]} 40. Rb1 {[%emt 0:01:14]} Be4 {[%emt 0:00:55]} 41. Qe3 {[%emt 0:00:23]} Bxb1 {[%emt 0:00:18]} 0-1

[Event "FIDE WCCC Open-12 2024"]
[Site "Montesilvano"]
[Date "2024.11.18"]
[Round "1.5"]
[White "Sahbudak, Baris Cinar"]
[Black "Berdashkevich, Makar"]
[Result "0-1"]
[ECO "B23"]
[WhiteElo "2264"]
[BlackElo "1848"]
[PlyCount "88"]
[EventDate "2024.11.18"]
[EventType "swiss"]
[EventCountry "ITA"]
[TimeControl "5400+30"]

1. e4 {[%emt 0:00:11]} c5 {[%emt 0:00:13]} 2. Nc3 {[%emt 0:00:45]} d6 {[%emt 0:00:51]} 3. f4 {[%emt 0:00:58]} g6 {[%emt 0:01:54]} 4. Nf3 {[%emt 0:01:19]} Bg7 {[%emt 0:01:15]} 5. Bb5+ {[%emt 0:01:12]} Bd7 {[%emt 0:00:42]} 6. Bxd7+ {[%emt 1:29:05]} Qxd7 {[%emt 0:00:20]} 7. d3 {[%emt 0:00:00]} Nc6 {[%emt 0:01:50]} 8. O-O {[%emt 0:00:00]} e6 {[%emt 0:05:09]} 9. f5 {[%emt 0:00:00]} O-O-O {[%emt 0:04:09]} 10. fxe6 {[%emt 0:00:00]} fxe6 {[%emt 0:00:24]} 11. Be3 {[%emt 0:00:00]} h6 {[%emt 0:40:11]} 12. d4 {[%emt 0:00:00]} cxd4 {[%emt 0:11:31]} 13. Nxd4 {[%emt 0:00:00]} Nf6 {[%emt 0:01:47]} 14. Nxc6 {[%emt 0:00:00]} Qxc6 {[%emt 0:02:29]} 15. Qd4 {[%emt 0:00:00]} Rhf8 {[%emt 0:09:37]} 16. Qxa7 {[%emt 0:00:59]} Nxe4 {[%emt 0:11:00]} 17. Na4 {[%emt 0:02:46]} Kd7 {[%emt 0:01:26]} 18. Qa5 {[%emt 0:00:52]} Ke7 {[%emt 0:01:03]} 19. Qb4 {[%emt 0:00:15]} Rf5 {[%emt 0:03:00]} 20. Rxf5 {[%emt 0:00:53]} gxf5 {[%emt 0:00:20]} 21. c3 {[%emt 0:00:58]} Be5 {[%emt 0:00:42]} 22. Re1 {[%emt 0:00:41]} Kf7 {[%emt 0:00:48]} 23. Nb6 {[%emt 0:00:27]} Rg8 {[%emt 0:00:34]} 24. Re2 {[%emt 0:00:34]} Rg4 {[%emt 0:00:39]} 25. Qb3 {[%emt 0:00:28]} Nc5 {[%emt 0:00:18]} 26. Bxc5 {[%emt 0:00:30]} Qxc5+ {[%emt 0:00:05]} 27. Kh1 {[%emt 0:00:18]} Rf4 {[%emt 0:00:36]} 28. g3 {[%emt 0:00:44]} Rf1+ {[%emt 0:00:51]} 29. Kg2 {[%emt 0:00:01]} Qg1+ {[%emt 0:00:37]} 30. Kh3 {[%emt 0:00:01]} Rf2 {[%emt 0:00:26]} 31. Rxf2 {[%emt 0:00:32]} Qxf2 {[%emt 0:00:05]} 32. Qb5 {[%emt 0:00:16]} Bf6 {[%emt 0:00:56]} 33. Nc8 {[%emt 0:00:39]} Kg6 {[%emt 0:00:37]} 34. Nxd6 {[%emt 0:00:15]} Kh7 {[%emt 0:00:31]} 35. Ne8 {[%emt 0:01:01]} Be7 {[%emt 0:00:25]} 36. Nc7 {[%emt 0:00:48]} Qf3 {[%emt 0:00:16]} 37. Qc4 {[%emt 0:00:48]} b5 {[%emt 0:00:45]} 38. Nxb5 {[%emt 0:00:20]} h5 {[%emt 0:00:30]} 39. Nd4 {[%emt 0:00:30]} Qg4+ {[%emt 0:00:30]} 40. Kg2 {[%emt 0:00:30]} Qe4+ {[%emt 0:00:30]} 41. Kf2 {[%emt 0:00:30]} Bf6 {[%emt 0:00:30]} 42. Qc7+ {[%emt 0:00:30]} Kg6 {[%emt 0:00:30]} 43. Qc4 {[%emt 0:00:30]} f4 {[%emt 0:00:30]} 44. Qa4 {[%emt 0:00:30]} Qe3+ {[%emt 0:00:33]} 0-1

[Event "FIDE WCCC Open-12 2024"]
[Site "Montesilvano"]
[Date "2024.11.18"]
[Round "1.6"]
[White "Konstantinides, Savvas"]
[Black "Negrean, Andrei"]
[Result "0-1"]
[ECO "B65"]
[WhiteElo "1839"]
[BlackElo "2255"]
[PlyCount "88"]
[EventDate "2024.11.18"]
[EventType "swiss"]
[EventCountry "ITA"]
[TimeControl "5400+30"]

1. e4 {[%emt 0:00:24]} c5 {[%emt 0:00:14]} 2. Nf3 {[%emt 0:00:15]} d6 {[%emt 0:00:22]} 3. d4 {[%emt 0:00:04]} Nf6 {[%emt 0:00:46]} 4. Nc3 {[%emt 0:00:53]} cxd4 {[%emt 0:00:14]} 5. Nxd4 {[%emt 0:00:09]} Nc6 {[%emt 0:00:26]} 6. Bg5 {[%emt 0:00:06]} e6 {[%emt 0:00:45]} 7. Qd2 {[%emt 0:00:34]} Be7 {[%emt 0:00:51]} 8. f4 {[%emt 0:00:16]} Nxd4 {[%emt 0:07:24]} 9. Qxd4 {[%emt 0:00:09]} O-O {[%emt 0:01:51]} 10. O-O-O {[%emt 0:04:07]} h6 {[%emt 0:03:01]} 11. Bh4 {[%emt 0:01:10]} Qa5 {[%emt 0:02:18]} 12. e5 {[%emt 0:11:24]} dxe5 {[%emt 0:00:46]} 13. Qxe5 {[%emt 0:00:14]} Qxe5 {[%emt 0:03:25]} 14. fxe5 {[%emt 0:00:09]} Nd5 {[%emt 0:00:06]} 15. Bxe7 {[%emt 0:01:25]} Nxe7 {[%emt 0:00:42]} 16. Bd3 {[%emt 0:02:11]} Nc6 {[%emt 0:16:41]} 17. Rhe1 {[%emt 0:01:22]} Rd8 {[%emt 0:04:51]} 18. Nb5 {[%emt 0:03:42]} Kf8 {[%emt 0:14:57]} 19. Be4 {[%emt 0:12:43]} Rxd1+ {[%emt 0:06:06]} 20. Rxd1 {[%emt 0:00:11]} Nxe5 {[%emt 0:02:24]} 21. Rd8+ {[%emt 0:00:24]} Ke7 {[%emt 0:00:04]} 22. Rg8 {[%emt 0:59:38]} g5 {[%emt 0:11:23]} 23. Nxa7 {[%emt 0:00:00]} Rxa7 {[%emt 0:06:15]} 24. Rxc8 {[%emt 0:00:00]} f5 {[%emt 0:07:18]} 25. Rc7+ {[%emt 0:00:00]} Kd6 {[%emt 0:00:45]} 26. Rxb7 {[%emt 0:00:00]} Rxa2 {[%emt 0:00:07]} 27. Bd3 {[%emt 0:00:00]} Nxd3+ {[%emt 0:00:41]} 28. cxd3 {[%emt 0:00:00]} Ra1+ {[%emt 0:00:14]} 29. Kd2 {[%emt 0:00:00]} Rg1 {[%emt 0:00:41]} 30. b4 {[%emt 0:00:00]} Rxg2+ {[%emt 0:00:11]} 31. Kc3 {[%emt 0:00:00]} Rxh2 {[%emt 0:03:06]} 32. b5 {[%emt 0:00:00]} Rh1 {[%emt 0:00:41]} 33. b6 {[%emt 0:00:00]} Rb1 {[%emt 0:01:30]} 34. Rh7 {[%emt 0:00:00]} Rxb6 {[%emt 0:00:11]} 35. Rxh6 {[%emt 0:00:00]} Ke5 {[%emt 0:01:00]} 36. d4+ {[%emt 0:00:00]} Ke4 {[%emt 0:00:21]} 37. Kc4 {[%emt 0:00:00]} Rd6 {[%emt 0:00:24]} 38. Kc5 {[%emt 0:00:00]} Rd5+ {[%emt 0:00:14]} 39. Kc6 {[%emt 0:00:00]} Rxd4 {[%emt 0:00:09]} 40. Rxe6+ {[%emt 0:00:00]} Kf3 {[%emt 0:00:11]} 41. Kc5 {[%emt 0:00:00]} Rd1 {[%emt 0:00:14]} 42. Kc4 {[%emt 0:00:00]} g4 {[%emt 0:00:05]} 43. Rf6 {[%emt 0:00:00]} f4 {[%emt 0:00:06]} 44. Kc3 {[%emt 0:00:00]} g3 {[%emt 0:08:29] Kd4} 0-1

[Event "FIDE WCCC Open-12 2024"]
[Site "Montesilvano"]
[Date "2024.11.18"]
[Round "1.7"]
[White "Aansh Nandan Nerurkar"]
[Black "Kozhedub, Ivan"]
[Result "1-0"]
[ECO "B06"]
[WhiteElo "2247"]
[BlackElo "1826"]
[PlyCount "91"]
[EventDate "2024.11.18"]
[EventType "swiss"]
[EventCountry "ITA"]
[TimeControl "5400+30"]

1. e4 {[%emt 0:00:01]} c5 {[%emt 0:00:12]} 2. Nf3 {[%emt 0:00:08]} g6 {[%emt 0:00:13]} 3. c3 {[%emt 0:00:06]} d5 {[%emt 0:00:05]} 4. exd5 {[%emt 0:00:06]} Qxd5 {[%emt 0:00:04]} 5. d4 {[%emt 0:00:10]} Bg7 {[%emt 0:00:27]} 6. Na3 {[%emt 0:01:03]} cxd4 {[%emt 0:00:19]} 7. Bc4 {[%emt 0:00:11]} Qd8 {[%emt 0:00:27]} 8. Qb3 {[%emt 0:01:42]} e6 {[%emt 0:00:15]} 9. Nxd4 {[%emt 0:00:40]} Ne7 {[%emt 0:00:49]} 10. O-O {[%emt 0:00:16]} O-O {[%emt 0:02:11]} 11. Rd1 {[%emt 0:02:34]} Qa5 {[%emt 0:05:04]} 12. Nab5 {[%emt 0:02:02]} Nbc6 {[%emt 0:03:07]} 13. Nf3 {[%emt 0:02:25]} a6 {[%emt 0:05:37]} 14. Nd6 {[%emt 0:00:27]} b5 {[%emt 0:01:50]} 15. Be2 {[%emt 0:02:33]} Nf5 {[%emt 0:04:03]} 16. Ne4 {[%emt 0:12:22]} e5 {[%emt 0:09:33]} 17. Bg5 {[%emt 0:00:11]} Be6 {[%emt 0:01:06]} 18. Qc2 {[%emt 0:00:07]} Rac8 {[%emt 0:00:56]} 19. Nc5 {[%emt 0:03:47]} Qb6 {[%emt 0:24:45]} 20. Nxe6 {[%emt 0:02:27]} fxe6 {[%emt 0:00:08]} 21. Qe4 {[%emt 0:00:52]} Qc7 {[%emt 0:01:48]} 22. Bd3 {[%emt 0:04:57]} Rf7 {[%emt 0:10:02]} 23. Qe2 {[%emt 0:02:33]} Rcf8 {[%emt 0:01:53]} 24. a4 {[%emt 0:01:49]} Nd6 {[%emt 0:05:02]} 25. axb5 {[%emt 0:01:57]} axb5 {[%emt 0:00:10]} 26. Rf1 {[%emt 0:02:21]} b4 {[%emt 0:02:12]} 27. Nd2 {[%emt 0:05:04]} bxc3 28. bxc3 {[%emt 0:00:01]} Ne7 {[%emt 0:02:21]} 29. Bxe7 {[%emt 0:03:42]} Rxe7 {[%emt 0:00:20]} 30. Rac1 {[%emt 0:00:09]} Qc5 {[%emt 0:01:29]} 31. Ne4 {[%emt 0:04:05]} Nxe4 {[%emt 0:00:15]} 32. Bxe4 {[%emt 0:00:03]} Rd7 {[%emt 0:01:16]} 33. g3 {[%emt 0:02:19]} Bh6 {[%emt 0:05:21]} 34. Rc2 {[%emt 0:00:12]} Kg7 {[%emt 0:00:45]} 35. Kg2 {[%emt 0:00:30]} Rfd8 {[%emt 0:01:03]} 36. Rb1 {[%emt 0:02:13]} Rd2 {[%emt 0:06:39]} 37. Rxd2 {[%emt 0:05:35]} Bxd2 {[%emt 0:00:06]} 38. Rb7+ {[%emt 0:00:42]} Kg8 {[%emt 0:07:02]} 39. Qg4 {[%emt 0:00:08]} Qc4 {[%emt 0:00:33]} 40. Rxh7 {[%emt 0:00:37]} Bg5 {[%emt 0:00:28]} 41. Rb7 {[%emt 0:00:17]} Rd2 {[%emt 0:00:32]} 42. Rb4 {[%emt 0:00:47]} Qc5 {[%emt 0:00:30]} 43. Qxe6+ {[%emt 0:00:09]} Kf8 {[%emt 0:00:26]} 44. Rb8+ {[%emt 0:00:30]} Bd8 {[%emt 0:00:14]} 45. Qf6+ {[%emt 0:00:02]} Ke8 {[%emt 0:00:09]} 46. Bxg6+ {[%emt 0:00:05]} 1-0

[Event "FIDE WCCC Open-12 2024"]
[Site "Montesilvano"]
[Date "2024.11.18"]
[Round "1.8"]
[White "Padure, Dragos-Alexandru"]
[Black "Torres Rebolledo, Alvaro"]
[Result "1-0"]
[ECO "B13"]
[WhiteElo "1822"]
[BlackElo "2216"]
[PlyCount "125"]
[EventDate "2024.11.18"]
[EventType "swiss"]
[EventCountry "ITA"]
[TimeControl "5400+30"]

1. e4 {[%emt 0:00:37]} c6 {[%emt 0:00:26]} 2. d4 {[%emt 0:00:14]} d5 {[%emt 0:00:07]} 3. exd5 {[%emt 0:00:34]} cxd5 {[%emt 0:00:09]} 4. Bd3 {[%emt 0:00:14]} Nc6 {[%emt 0:00:13]} 5. c3 {[%emt 0:00:07]} Nf6 {[%emt 0:00:10]} 6. Bf4 {[%emt 0:00:34]} Bg4 {[%emt 0:00:18]} 7. Qb3 {[%emt 0:00:37]} Qd7 {[%emt 0:00:20]} 8. Nd2 {[%emt 0:01:57]} e6 {[%emt 0:00:13]} 9. Ngf3 {[%emt 0:01:25]} Bd6 {[%emt 0:00:24]} 10. Bxd6 {[%emt 0:01:15]} Qxd6 {[%emt 0:00:04]} 11. O-O {[%emt 0:00:44]} O-O {[%emt 0:00:14]} 12. Rfe1 {[%emt 0:03:23]} Qc7 {[%emt 0:03:59]} 13. Qc2 {[%emt 0:11:35]} Rfc8 {[%emt 0:06:03]} 14. Rac1 {[%emt 0:04:42]} Bxf3 {[%emt 0:10:28]} 15. Nxf3 {[%emt 0:00:08]} Rab8 {[%emt 0:05:16]} 16. Qe2 {[%emt 0:20:25]} a6 {[%emt 0:04:51]} 17. h3 {[%emt 0:02:14]} b5 {[%emt 0:06:52]} 18. Ne5 {[%emt 0:15:30]} Ne7 {[%emt 0:06:59]} 19. Qf3 {[%emt 0:16:53]} Rb6 {[%emt 0:07:03]} 20. g4 {[%emt 0:06:37]} Ng6 {[%emt 0:05:32]} 21. Qg3 {[%emt 0:01:18]} Nxe5 {[%emt 0:04:45]} 22. dxe5 {[%emt 0:00:28]} Nd7 {[%emt 0:00:41]} 23. f4 {[%emt 0:02:09]} Rc6 {[%emt 0:05:24]} 24. Rcd1 {[%emt 0:01:04]} b4 {[%emt 0:01:11]} 25. cxb4 {[%emt 0:01:38]} Qb6+ {[%emt 0:00:14]} 26. Qf2 {[%emt 0:00:41]} Qxb4 {[%emt 0:01:06]} 27. Kh1 {[%emt 0:02:00]} Nc5 {[%emt 0:01:43]} 28. Bb1 {[%emt 0:00:25]} Na4 {[%emt 0:06:08]} 29. Kh2 {[%emt 0:02:35]} Nxb2 {[%emt 0:03:13]} 30. Rd2 {[%emt 0:00:29]} Nc4 {[%emt 0:01:15]} 31. Rde2 {[%emt 0:00:04]} Na3 {[%emt 0:02:18]} 32. Bd3 {[%emt 0:00:17]} Qc3 {[%emt 0:03:20]} 33. Re3 {[%emt 0:00:22]} Qb4 {[%emt 0:01:12]} 34. R3e2 {[%emt 0:00:38]} Nb5 {[%emt 0:01:11]} 35. f5 {[%emt 0:00:42]} Qd4 {[%emt 0:00:59]} 36. Re3 {[%emt 0:00:34]} exf5 {[%emt 0:02:40]} 37. Bxf5 {[%emt 0:00:36]} Rd8 {[%emt 0:02:07]} 38. Qh4 {[%emt 0:00:27]} Qf4+ {[%emt 0:00:56]} 39. Kh1 {[%emt 0:00:18]} Re8 {[%emt 0:02:09]} 40. Qxh7+ {[%emt 0:00:49]} Kf8 {[%emt 0:00:00]} 41. Bd7 {[%emt 0:01:05]} Rh6 {[%emt 0:00:07]} 42. Qd3 {[%emt 0:01:07]} Re7 {[%emt 0:00:48]} 43. Qxd5 {[%emt 0:00:29]} Kg8 {[%emt 0:00:26]} 44. Bxb5 {[%emt 0:00:25]} Qxg4 {[%emt 0:02:17]} 45. Bf1 {[%emt 0:01:37]} Re8 {[%emt 0:00:56]} 46. Bg2 {[%emt 0:00:33]} Qg5 {[%emt 0:00:11]} 47. Rf3 {[%emt 0:00:37]} Re7 {[%emt 0:00:38]} 48. Qd8+ {[%emt 0:00:42]} Kh7 {[%emt 0:00:01]} 49. Rxf7 {[%emt 0:00:25]} Rg6 {[%emt 0:01:40]} 50. Be4 {[%emt 0:00:31]} Qh4 {[%emt 0:01:15]} 51. Bxg6+ {[%emt 0:00:24]} Kxg6 {[%emt 0:00:01]} 52. Qxe7 {[%emt 0:00:32]} Qxe1+ {[%emt 0:00:07]} 53. Kg2 {[%emt 0:00:24]} Qe4+ {[%emt 0:00:48]} 54. Rf3 {[%emt 0:00:08]} Qe2+ {[%emt 0:00:13]} 55. Kg3 {[%emt 0:00:19]} Qe1+ {[%emt 0:00:06]} 56. Kf4 {[%emt 0:00:33]} Qd2+ {[%emt 0:00:22]} 57. Ke4 {[%emt 0:00:57]} Qe2+ {[%emt 0:00:01]} 58. Re3 {[%emt 0:00:17]} Qc4+ {[%emt 0:00:05]} 59. Kf3 {[%emt 0:00:16]} Qf1+ {[%emt 0:00:03]} 60. Kg4 {[%emt 0:00:25]} Qg2+ {[%emt 0:00:35]} 61. Kh4 {[%emt 0:00:43]} Qf2+ {[%emt 0:00:16]} 62. Rg3+ {[%emt 0:00:04]} Kf5 {[%emt 0:00:38]} 63. Qf7+ {[%emt 0:00:12]} 1-0